bitfinex/quotes_ETHUSD_20241013
["timestamp","ask_amount","ask_price","bid_price","bid_amount"]
[1728811582495,0.78036978,2468.0,2467.9,0.84585622]
[1728811582864,0.07772606,2468.0,2467.9,0.84585622]
[1728811584173,0.07772606,2468.0,2467.9,1.07880494]
[1728811592207,0.78047631,2468.0,2467.9,0.00785622]
[1728811592395,0.07772606,2468.0,2467.9,0.00785622]
[1728811596966,0.07772606,2468.0,2467.9,0.31194889]
[1728811600690,0.78060513,2468.0,2467.9,0.31194889]
[1728811601420,0.78062956,2468.0,2467.9,0.31194889]
[1728811602881,0.78062956,2468.0,2467.9,0.00785622]
[1728811603075,0.78062956,2468.0,2467.9,0.31199573]
[1728811603488,0.78062956,2468.0,2467.9,0.00785622]
[1728811603905,0.78062956,2468.0,2467.9,0.31199699]
[1728811604913,0.78065576,2468.0,2467.9,0.31199699]
[1728811606886,0.07772606,2468.0,2467.9,0.31199119]
[1728811607196,0.7806715,2468.0,2467.9,0.31199119]
[1728811607417,0.07772606,2468.0,2467.9,0.31199119]
[1728811608421,0.07772606,2468.0,2467.9,0.00785622]
[1728811608590,0.07772606,2468.0,2467.9,0.31198505]
[1728811613472,0.78061969,2468.0,2467.9,0.31198505]
[1728811613881,0.78062449,2468.0,2467.9,0.31198505]
[1728811614075,0.07772606,2468.0,2467.9,0.31198505]
[1728811614448,0.78061974,2468.0,2467.9,0.00785622]
[1728811614681,0.07772606,2468.0,2467.9,0.31197104]
[1728811615377,0.78063873,2468.0,2467.9,0.31197104]
[1728811616583,0.07772606,2468.0,2467.9,0.31197104]
[1728811616906,0.78064906,2468.0,2467.9,0.31197104]
[1728811617066,0.07772606,2468.0,2467.9,0.31197104]
[1728811617383,0.78069242,2468.0,2467.9,0.31197104]
[1728811618191,0.07772606,2468.0,2467.9,1.20909418]
[1728811618477,0.07772606,2468.0,2467.9,1.75670032]
[1728811618680,0.07772606,2468.0,2467.9,1.88358228]
[1728811619375,0.84957151,2468.2,2467.9,1.5794357]
[1728811619534,1.7576843,2468.1,2468.0,0.12688196]
[1728811619738,0.70307372,2468.1,2468.0,0.43105272]
[1728811619940,0.84957151,2468.3,2468.1,4.82178]
[1728811620174,0.84957151,2468.4,2468.2,1.92253995]
[1728811620483,0.70312884,2468.3,2468.2,1.48363101]
[1728811620643,0.70312884,2468.3,2468.2,1.91465574]
[1728811621149,0.70312884,2468.3,2468.2,1.48363101]
[1728811621350,0.70312884,2468.3,2468.2,2.5788045]
[1728811621538,0.84957151,2468.4,2468.2,2.5788045]
[1728811621735,0.84957151,2468.4,2468.3,0.43102158]
[1728811621990,2.60738004,2468.4,2468.3,0.43102158]
[1728811622499,2.60738134,2468.4,2468.3,0.43102158]
[1728811622653,0.70312393,2468.4,2468.3,0.43102158]
[1728811622854,0.70312393,2468.4,2468.3,1.91465259]
[1728811623294,0.84957151,2468.5,2468.3,1.91465259]
[1728811623459,1.90409248,2468.5,2468.4,0.43102158]
[1728811623794,2.6071076,2468.5,2468.4,0.43102158]
[1728811624978,1.55258476,2468.5,2468.4,0.43102158]
[1728811625196,2.6071076,2468.5,2468.4,0.43102158]
[1728811625694,2.6071076,2468.5,2468.4,0.43084152]
[1728811626054,6.6581476,2468.5,2468.4,0.43084152]
[1728811626256,6.72326616,2468.5,2468.4,0.43084152]
[1728811627194,6.72217067,2468.5,2468.4,0.43084152]
[1728811627491,2.67113067,2468.5,2468.4,0.43084152]
[1728811628156,2.67113067,2468.5,2468.4,0.30393699]
[1728811628497,2.67113067,2468.5,2468.4,0.43077989]
[1728811629355,2.67113067,2468.5,2468.4,0.12686752]
[1728811630356,2.67113067,2468.5,2468.4,0.43074808]
[1728811630558,1.82155916,2468.5,2468.4,0.43074808]
[1728811631298,0.7676948,2468.5,2468.4,0.43074808]
[1728811631867,0.7676948,2468.5,2468.4,1.61049499]
[1728811632092,0.06511856,2468.5,2468.4,1.61049499]
[1728811632713,4.90037151,2468.7,2468.4,1.91435627]
[1728811632888,0.06515808,2468.5,2468.4,1.91435627]
[1728811633085,0.84957151,2468.7,2468.5,0.12686398]
[1728811633296,1.55189113,2468.8,2468.6,0.1347202]
[1728811633613,0.70221817,2468.7,2468.5,1.48363101]
[1728811633783,4.90013151,2468.8,2468.6,0.43062281]
[1728811634138,4.05073,2468.7,2468.4,1.48363101]
[1728811634413,4.05073,2468.7,2468.5,0.43060487]
[1728811634621,4.05073,2468.7,2468.6,0.12685142]
[1728811634980,4.75283711,2468.7,2468.4,1.48363101]
[1728811635301,4.05073,2468.7,2468.5,0.43057989]
[1728811635500,4.05073,2468.7,2468.4,1.48363101]
[1728811635738,4.05073,2468.7,2468.5,0.4305455]
[1728811635888,4.05073,2468.7,2468.5,0.303689]
[1728811636310,8.10157,2468.7,2468.5,0.303689]
[1728811636517,4.05073,2468.7,2468.3,2.25213101]
[1728811636684,4.05073,2468.7,2468.4,0.12685762]
[1728811636876,4.05073,2468.7,2468.5,0.12685762]
[1728811637216,4.90030151,2468.7,2468.4,0.30366516]
[1728811638373,4.05073,2468.7,2468.5,0.12685669]
[1728811638572,4.05073,2468.7,2468.4,0.3036429]
[1728811638770,4.05073,2468.7,2468.5,0.1268567]
[1728811638972,4.05073,2468.7,2468.4,0.30364293]
[1728811639221,4.05073,2468.7,2468.3,2.25213101]
[1728811639222,4.05073,2468.7,2468.5,0.12685669]
[1728811639401,4.05073,2468.7,2468.4,0.30362881]
[1728811639617,4.05073,2468.7,2468.5,0.12685668]
[1728811639930,4.05073,2468.7,2468.4,0.30362878]
[1728811640144,4.05073,2468.7,2468.5,0.12685668]
[1728811640297,4.05073,2468.7,2468.4,0.30361782]
[1728811640498,4.05073,2468.7,2468.5,0.12685668]
[1728811640809,4.05073,2468.7,2468.4,0.30361665]
[1728811641008,4.05073,2468.7,2468.5,0.1268567]
[1728811641322,0.06526792,2468.6,2468.4,0.30361673]
[1728811641523,0.06526792,2468.6,2468.5,0.13471295]
[1728811643438,0.06526792,2468.6,2468.5,0.00785622]
[1728811647523,0.06526792,2468.6,2468.5,0.13471292]
[1728811648276,0.84957151,2468.8,2468.5,0.13471292]
[1728811648475,0.06528767,2468.6,2468.5,0.13471292]
[1728811648642,4.90021151,2468.8,2468.5,0.13471292]
[1728811648840,0.06512499,2468.6,2468.5,0.13471292]
[1728811649039,4.90021151,2468.8,2468.5,0.00785622]
[1728811649243,0.06514474,2468.6,2468.5,0.13471157]
[1728811649428,0.06514474,2468.6,2468.5,0.00785622]
[1728811649628,4.90021151,2468.8,2468.5,0.00785622]
[1728811649884,0.06519498,2468.7,2468.5,1.49148723]
[1728811650176,0.06519498,2468.7,2468.6,2.43704244]
[1728811650383,4.90002151,2468.9,2468.6,2.43704244]
[1728811650534,4.90002151,2468.9,2468.8,0.00785622]
[1728811650878,6.65425916,2468.9,2468.8,0.00785622]
[1728811651658,5.80533513,2468.9,2468.8,0.00785622]
[1728811651939,4.75240405,2468.9,2468.8,0.00785622]
[1728811654360,4.81772637,2468.9,2468.8,0.00785622]
[1728811654570,0.76727637,2468.9,2468.8,0.00785622]
[1728811655484,0.76733295,2468.9,2468.8,0.00785622]
[1728811658455,1.82039689,2468.9,2468.8,0.00785622]
[1728811659383,2.66932092,2468.9,2468.8,0.00785622]
[1728811663356,2.66932092,2468.9,2468.8,0.13470203]
[1728811663789,2.66932092,2468.9,2468.8,0.00785622]
[1728811664089,2.66932092,2468.9,2468.8,0.13470201]
[1728811664490,2.66932092,2468.9,2468.8,0.13470213]
[1728811664860,2.67090692,2468.9,2468.8,0.13470213]
[1728811665285,3.09532965,2468.9,2468.8,0.13470213]
[1728811666277,2.67189609,2468.9,2468.8,0.13470213]
[1728811667400,2.67189609,2468.9,2468.8,0.00785622]
[1728811667711,2.67189609,2468.9,2468.8,0.13470024]
[1728811668309,2.67189609,2468.9,2468.8,1.61833125]
[1728811668500,0.76802375,2468.9,2468.8,2.26711137]
[1728811668673,0.76802375,2468.9,2468.8,0.78348036]
[1728811668875,0.76802375,2468.9,2468.8,2.26711137]
[1728811669199,0.06538433,2468.9,2468.8,3.08581137]
[1728811669410,0.06538433,2468.9,2468.8,3.57203335]
[1728811669613,0.8499132,2469.1,2468.8,3.57203335]
[1728811669810,0.76609219,2469.0,2468.9,1.29417636]
[1728811670313,0.06328215,2469.0,2468.9,1.29417636]
[1728811670672,0.06328215,2469.0,2468.9,2.77780737]
[1728811671070,0.06328215,2469.0,2468.9,2.77779381]
[1728811671570,0.06328215,2469.0,2468.9,2.65096335]
[1728811671814,0.06328215,2469.0,2468.9,2.77779407]
[1728811674908,0.8499132,2469.1,2468.9,2.77779407]
[1728811675111,0.8499132,2469.1,2469.0,0.13468694]
[1728811675429,1.55251479,2469.1,2469.0,0.13468694]
[1728811675618,2.60641736,2469.1,2469.0,0.13468694]
[1728811675803,1.75650416,2469.1,2469.0,0.13468694]
[1728811676009,0.70260159,2469.1,2469.0,0.13468694]
[1728811678237,1.75652308,2469.1,2469.0,0.13468694]
[1728811678437,0.70260159,2469.1,2469.0,0.13468694]
[1728811678819,0.70260159,2469.1,2469.0,0.13468687]
[1728811679145,0.70259535,2469.1,2469.0,0.13468687]
[1728811681545,0.70259535,2469.1,2469.0,0.13468668]
[1728811682439,0.70249788,2469.1,2469.0,0.13468668]
[1728811685173,0.70249788,2469.1,2469.0,0.13468649]
[1728811685470,0.70249788,2469.1,2469.0,0.00785622]
[1728811685676,0.70249788,2469.1,2469.0,0.1346865]
[1728811685845,0.70249788,2469.1,2469.0,1.61831751]
[1728811686039,0.8499132,2469.2,2469.0,1.61831751]
[1728811686228,1.55243968,2469.2,2469.1,1.61046129]
[1728811686430,1.55243968,2469.2,2469.1,1.86370926]
[1728811686431,0.70252648,2469.2,2469.1,1.86370926]
[1728811686630,0.8499132,2469.5,2469.2,0.8356]
[1728811686831,0.70251817,2469.4,2469.3,0.12683028]
[1728811687073,2.12325996,2469.6,2469.4,0.00785622]
[1728811687233,0.8499132,2469.6,2469.5,1.61043402]
[1728811687573,1.55223336,2469.6,2469.5,1.48363101]
[1728811687741,2.60607982,2469.6,2469.5,1.48363101]
[1728811688278,0.84966905,2469.7,2469.5,2.31923101]
[1728811688429,2.60577555,2469.7,2469.6,1.49148723]
[1728811688634,2.60560871,2469.7,2469.6,1.49148723]
[1728811688828,0.70227541,2469.7,2469.6,1.49148723]
[1728811689073,0.84966905,2469.8,2469.6,1.49148723]
[1728811689074,1.55194446,2469.8,2469.6,1.49148723]
[1728811689276,0.70227541,2469.7,2469.6,0.00785622]
[1728811689449,1.55194446,2469.8,2469.6,1.49148723]
[1728811689777,0.84966905,2469.8,2469.7,0.00785622]
[1728811690070,2.604962,2469.8,2469.7,0.00785622]
[1728811690661,0.70211718,2469.8,2469.7,0.00785622]
[1728811691545,0.70198626,2469.8,2469.7,0.00785622]
[1728811692359,1.55165531,2469.9,2469.7,1.49148723]
[1728811692671,0.84966905,2469.9,2469.8,0.00785622]
[1728811692884,1.90226466,2469.9,2469.8,0.00785622]
[1728811693048,1.90226466,2469.9,2469.8,1.49148723]
[1728811693257,0.84966905,2470.0,2469.8,1.78899905]
[1728811693433,2.38733975,2470.1,2469.9,1.48363101]
[1728811693654,0.70160478,2470.0,2469.9,1.48363101]
[1728811694180,1.68556905,2470.1,2469.9,1.48363101]
[1728811694403,1.75400942,2470.0,2469.9,1.48363101]
[1728811694680,0.70160478,2470.0,2469.9,1.48363101]
[1728811695283,0.84966905,2470.1,2469.9,1.48363101]
[1728811695790,0.84966905,2470.2,2469.9,1.48363101]
[1728811695986,2.60309091,2470.2,2469.9,1.48363101]
[1728811696187,0.70137093,2470.1,2469.9,1.48363101]
[1728811696359,0.84966905,2470.2,2469.9,1.48363101]
[1728811696560,2.60311645,2470.2,2469.9,1.48363101]
[1728811696755,0.84966905,2470.2,2469.9,1.48363101]
[1728811696970,2.60276503,2470.2,2469.9,1.48363101]
[1728811697146,0.84966905,2470.2,2469.9,1.48363101]
[1728811697349,2.60276688,2470.2,2469.9,1.48363101]
[1728811697561,0.84966905,2470.2,2469.9,1.48363101]
[1728811697877,4.87148,2470.3,2469.8,2.28073101]
[1728811697878,5.72114905,2470.3,2469.8,2.28073101]
[1728811698056,0.70111476,2470.2,2469.8,3.31862711]
[1728811700581,5.72114905,2470.3,2469.8,3.31862711]
[1728811701392,0.06297789,2470.2,2469.8,3.31862711]
[1728811701791,5.72114905,2470.3,2469.8,3.31862711]
[1728811701992,0.06292775,2470.1,2469.8,3.31862711]
[1728811702193,0.06297789,2470.2,2469.9,0.73676871]
[1728811702397,0.06287761,2470.0,2469.9,0.73676871]
[1728811702599,5.72114905,2470.3,2469.9,0.73676871]
[1728811702891,5.72114905,2470.3,2469.8,3.31862711]
[1728811703091,0.06297789,2470.2,2469.8,3.31862711]
[1728811703249,5.72114905,2470.3,2469.8,3.31862711]
[1728811703449,0.06297789,2470.2,2469.8,3.31862711]
[1728811703654,1.67296905,2470.3,2469.9,1.48363101]
[1728811703956,0.06317505,2470.2,2470.0,2.22037972]
[1728811704188,0.06317505,2470.2,2470.0,0.73674871]
[1728811704387,0.8233,2470.3,2470.0,2.22037972]
[1728811704590,0.06298712,2470.1,2470.0,2.22037972]
[1728811704902,0.06298712,2470.1,2470.0,2.22823594]
[1728811705197,0.8233,2470.3,2470.0,2.22823594]
[1728811705353,0.06298712,2470.1,2470.0,2.22823594]
[1728811705560,0.8233,2470.3,2470.0,2.22823594]
[1728811705859,4.04794,2470.4,2470.0,2.22823594]
[1728811706084,0.06311655,2470.3,2470.0,2.22823594]
[1728811706870,0.06311655,2470.3,2470.2,1.48363101]
[1728811707077,4.82601,2470.5,2470.2,0.00785622]
[1728811707288,4.82601,2470.5,2470.4,0.00785622]
[1728811710469,0.7782,2470.5,2470.4,0.00785622]
[1728811710664,8.09506,2470.7,2470.4,0.00785622]
[1728811710934,8.88386,2470.7,2470.4,0.00785622]
[1728811711108,4.04764,2470.6,2470.4,0.00785622]
[1728811712515,4.83631,2470.7,2470.4,0.00785622]
[1728811713021,4.83631,2470.7,2470.4,1.49148723]
[1728811713172,4.83631,2470.7,2470.6,0.00785622]
[1728811716519,4.8995934,2470.7,2470.6,0.00785622]
[1728811723457,5.60010263,2470.7,2470.6,0.00785622]
[1728811724008,5.60009839,2470.7,2470.6,0.00785622]
[1728811727556,7.50106957,2470.7,2470.6,0.00785622]
[1728811728634,7.50144988,2470.7,2470.6,0.00785622]
[1728811730656,6.65178083,2470.7,2470.6,0.00785622]
[1728811731567,7.92512759,2470.7,2470.6,0.00785622]
[1728811733058,11.18495102,2470.7,2470.6,0.00785622]
[1728811733261,4.88546,2470.5,2470.4,0.00785622]
[1728811733515,7.9136386,2470.5,2470.4,0.00785622]
[1728811733799,9.80559175,2470.5,2470.4,0.00785622]
[1728811734065,9.80557906,2470.5,2470.4,0.00785622]
[1728811734246,11.72421465,2470.5,2470.4,0.00785622]
[1728811737996,11.72569221,2470.5,2470.4,0.00785622]
[1728811740470,9.80705662,2470.5,2470.4,0.00785622]
[1728811740673,8.10926951,2470.5,2470.4,0.00785622]
[1728811741270,8.10997263,2470.5,2470.4,0.00785622]
[1728811741666,10.23486327,2470.5,2470.4,0.00785622]
[1728811746084,10.23644723,2470.5,2470.4,0.00785622]
[1728811748476,11.42617931,2470.5,2470.4,0.00785622]
[1728811748813,9.9425483,2470.5,2470.4,0.00785622]
[1728811748968,12.06894176,2470.5,2470.4,0.00785622]
[1728811750817,12.07009522,2470.5,2470.4,0.00785622]
[1728811754524,10.23823647,2470.5,2470.4,0.00785622]
[1728811755915,8.97540494,2470.5,2470.4,0.00785622]
[1728811759839,7.27379939,2470.5,2470.4,0.00785622]
[1728811760139,6.57059473,2470.5,2470.4,0.00785622]
[1728811760303,7.27415543,2470.5,2470.4,0.00785622]
[1728811763551,9.40132308,2470.5,2470.4,0.00785622]
[1728811765052,9.40175926,2470.5,2470.4,0.00785622]
[1728811766302,7.27435285,2470.5,2470.4,0.00785622]
[1728811766502,9.40175926,2470.5,2470.4,0.00785622]
[1728811768249,5.35399926,2470.5,2470.4,0.00785622]
[1728811768599,9.40175926,2470.5,2470.4,0.00785622]
[1728811770325,4.92867387,2470.5,2470.4,0.13462396]
[1728811771179,4.92879008,2470.5,2470.4,0.13462396]
[1728811773647,4.92879008,2470.5,2470.4,0.00785622]
[1728811774071,4.92879008,2470.5,2470.4,0.13461882]
[1728811774585,4.92878673,2470.5,2470.4,0.13461882]
[1728811777374,4.92878673,2470.5,2470.4,0.00785622]
[1728811777584,4.92878673,2470.5,2470.4,0.13461942]
[1728811779394,4.92872168,2470.5,2470.4,0.13461942]
[1728811780421,4.92872168,2470.5,2470.4,0.37477446]
[1728811781124,4.92872168,2470.5,2470.4,0.37477357]
[1728811781283,4.92872168,2470.5,2470.4,0.24801126]
[1728811781486,4.92872168,2470.5,2470.4,0.37477357]
[1728811781914,3.22664066,2470.5,2470.4,0.37477357]
[1728811782302,4.92872168,2470.5,2470.4,0.37477357]
[1728811782515,3.22664066,2470.5,2470.4,0.37477357]
[1728811782713,4.92872168,2470.5,2470.4,0.37477357]
[1728811784110,4.92859848,2470.5,2470.4,0.37477357]
[1728811784311,4.92859848,2470.5,2470.4,0.13461853]
[1728811786349,4.92860026,2470.5,2470.4,0.13461853]
[1728811788326,4.92860026,2470.5,2470.4,0.13461903]
[1728811792838,4.92860026,2470.5,2470.4,0.13461927]
[1728811793021,3.1695747,2470.5,2470.4,0.13461927]
[1728811793212,3.52474301,2470.5,2470.4,0.13461927]
[1728811793412,4.92883601,2470.5,2470.4,0.13461927]
[1728811793712,4.9288736,2470.5,2470.4,0.13461927]
[1728811793911,3.2300935,2470.5,2470.4,0.3747743]
[1728811794149,3.23007776,2470.5,2470.4,0.3747743]
[1728811794349,4.93215878,2470.5,2470.4,0.3747743]
[1728811795341,3.09931495,2470.5,2470.4,0.3747743]
[1728811795556,3.09930418,2470.5,2470.4,0.3747743]
[1728811796055,3.09930418,2470.5,2470.4,0.37476741]
[1728811796419,4.93232186,2470.5,2470.4,0.24801125]
[1728811796729,4.93232186,2470.5,2470.4,0.37476708]
[1728811798124,2.52652128,2470.5,2470.4,0.37476708]
[1728811798328,2.52660695,2470.5,2470.4,0.43852475]
[1728811798529,4.22868797,2470.5,2470.4,0.43852475]
[1728811800049,4.22868797,2470.5,2470.4,0.43852599]
[1728811801648,4.22888329,2470.5,2470.4,0.43852599]
[1728811802080,4.22888329,2470.5,2470.4,1.922157]
[1728811802372,4.22888329,2470.5,2470.4,1.11389669]
[1728811802686,4.22888329,2470.5,2470.4,0.00785622]
[1728811802881,4.22888329,2470.5,2470.4,0.43856385]
[1728811806388,4.2289167,2470.5,2470.4,0.43856385]
[1728811810748,4.2289167,2470.5,2470.4,0.31180684]
[1728811811051,4.22902731,2470.5,2470.4,0.43857515]
[1728811812982,4.22902731,2470.5,2470.4,0.71320577]
[1728811814408,4.22902731,2470.5,2470.4,0.71320556]
[1728811817531,2.52694629,2470.5,2470.4,0.43857494]
[1728811817902,4.23022383,2470.5,2470.4,0.13461352]
[1728811818105,2.52694629,2470.5,2470.4,0.43865978]
[1728811820519,2.52724931,2470.5,2470.4,0.43865978]
[1728811821731,2.52724931,2470.5,2470.4,0.13461364]
[1728811822722,6.57500931,2470.5,2470.4,0.13461364]
[1728811822931,10.80250117,2470.5,2470.4,0.13461364]
[1728811823597,8.67338578,2470.5,2470.4,0.13461364]
[1728811824654,10.80232516,2470.5,2470.4,0.13461364]
[1728811824833,8.67338578,2470.5,2470.4,0.13461364]
[1728811825394,8.67324809,2470.5,2470.4,0.13461364]
[1728811825676,10.80192491,2470.5,2470.4,0.13461364]
[1728811825887,10.80195119,2470.5,2470.4,0.13461364]
[1728811828040,6.75419119,2470.5,2470.4,0.13461364]
[1728811828875,6.75419119,2470.5,2470.4,0.13462203]
[1728811829178,6.75419119,2470.5,2470.4,0.00785622]
[1728811829343,6.75419119,2470.5,2470.4,0.13462205]
[1728811829683,10.80195119,2470.5,2470.4,0.13462205]
[1728811829994,10.80133814,2470.5,2470.4,0.13462233]
[1728811830278,6.75357814,2470.5,2470.4,0.13462233]
[1728811830481,10.80133814,2470.5,2470.4,0.13462233]
[1728811830972,10.80133814,2470.5,2470.4,0.00785622]
[1728811834858,10.80071834,2470.5,2470.4,0.00785622]
[1728811836737,10.80062223,2470.5,2470.4,0.00785622]
[1728811837955,6.75286223,2470.5,2470.4,0.00785622]
[1728811838745,5.47768576,2470.5,2470.4,0.00785622]
[1728811838945,4.59108508,2470.5,2470.4,0.00785622]
[1728811839145,4.65396256,2470.5,2470.4,0.00785622]
[1728811839385,4.65396256,2470.5,2470.4,0.13462193]
[1728811839681,4.22827393,2470.5,2470.4,0.13462193]
[1728811840644,4.22827393,2470.5,2470.4,0.00785622]
[1728811840883,4.22827393,2470.5,2470.4,0.13461475]
[1728811844280,4.22823402,2470.5,2470.4,0.13461475]
[1728811847867,4.22823402,2470.5,2470.4,0.00785622]
[1728811848099,4.22823402,2470.5,2470.4,0.13461659]
[1728811848287,4.22823402,2470.5,2470.4,0.13461662]
[1728811848963,4.22825156,2470.5,2470.4,0.13461662]
[1728811849501,4.22824724,2470.5,2470.4,0.13461662]
[1728811849797,4.22825213,2470.5,2470.4,0.13461662]
[1728811851699,4.22825213,2470.5,2470.4,0.13461515]
[1728811852399,4.29113351,2470.5,2470.4,0.13461515]
[1728811854246,4.29115267,2470.5,2470.4,0.13461515]
[1728811855310,4.29115267,2470.5,2470.4,0.00785622]
[1728811855611,4.29115267,2470.5,2470.4,0.13461633]
[1728811856740,5.85782336,2470.5,2470.4,0.13461633]
[1728811856900,4.15565247,2470.5,2470.4,0.13461633]
[1728811857106,6.28350666,2470.5,2470.4,0.13461633]
[1728811857538,6.28350666,2470.5,2470.4,0.00785622]
[1728811857960,6.28350666,2470.5,2470.4,0.13462341]
[1728811858963,6.28376591,2470.5,2470.4,0.00785622]
[1728811859544,6.28376591,2470.5,2470.4,0.13462421]
[1728811861338,6.28376591,2470.5,2470.4,0.13346263]
[1728811862245,6.28377259,2470.5,2470.4,0.13346263]
[1728811865224,6.28377259,2470.5,2470.4,0.13346133]
[1728811866830,6.28394789,2470.5,2470.4,0.13346133]
[1728811868926,6.28394789,2470.5,2470.4,0.13346111]
[1728811869330,6.28394789,2470.5,2470.4,0.00669464]
[1728811869528,6.28394789,2470.5,2470.4,0.1334609]
[1728811870666,4.15579878,2470.5,2470.4,0.1334609]
[1728811871164,5.85839292,2470.5,2470.4,0.1334609]
[1728811871336,5.85843701,2470.5,2470.4,0.1334609]
[1728811873184,9.90619701,2470.5,2470.4,0.1334609]
[1728811873346,9.68723388,2470.5,2470.4,0.00669464]
[1728811876060,9.68721487,2470.5,2470.4,0.00669464]
[1728811879145,15.93026875,2470.5,2470.4,0.00669464]
[1728811879345,15.93026875,2470.5,2469.9,0.12679171]
[1728811879346,0.8328,2470.0,2469.9,0.12679171]
[1728811879546,8.75898036,2470.0,2469.9,0.12679171]
[1728811879789,8.88982609,2470.0,2469.9,0.12679171]
[1728811880177,8.88982609,2470.0,2469.5,0.8127]
[1728811880387,4.89995857,2469.8,2469.6,0.12679646]
[1728811880565,4.89995857,2469.8,2469.7,0.12679646]
[1728811880893,6.01682542,2469.8,2469.7,0.12679646]
[1728811881494,4.11056205,2469.8,2469.7,0.13319646]
[1728811881994,6.01661749,2469.8,2469.7,0.43701776]
[1728811883605,6.01661749,2469.8,2469.7,0.43689246]
[1728811884301,6.01661749,2469.8,2469.7,0.13319646]
[1728811884596,4.11056205,2469.8,2469.7,0.13319646]
[1728811884754,5.16500765,2469.8,2469.7,0.13319646]
[1728811885371,4.11056205,2469.8,2469.7,0.13319646]
[1728811885890,6.42515156,2469.8,2469.7,0.13319646]
[1728811886170,6.42515156,2469.8,2469.7,0.0064]
[1728811886371,5.370869,2469.8,2469.7,0.0064]
[1728811886986,0.06160205,2469.8,2469.7,0.0064]
[1728811887482,4.11051205,2469.8,2469.7,0.0064]
[1728811894736,0.06160205,2469.8,2469.7,1.49003101]
[1728811895013,0.06160205,2469.8,2469.7,0.8257]
[1728811897380,0.85099857,2470.0,2469.7,0.8257]
[1728811897587,0.06144984,2469.9,2469.7,0.8193]
[1728811897882,0.06144984,2469.9,2469.8,0.0064]
[1728811900119,0.06144984,2469.9,2469.8,0.26766996]
[1728811900293,0.06144984,2469.9,2469.8,1.75130097]
[1728811900620,4.89949857,2470.1,2469.8,2.57060097]
[1728811900798,4.89949857,2470.1,2470.0,0.0064]
[1728811900999,5.95320111,2470.1,2470.0,0.0064]
[1728811903188,1.05370254,2470.1,2470.0,0.0064]
[1728811903427,0.85099857,2470.2,2470.0,0.0064]
[1728811903622,1.90488593,2470.1,2470.0,0.8257]
[1728811904217,1.90489084,2470.1,2470.0,0.8257]
[1728811904634,4.89930857,2470.2,2470.0,0.8257]
[1728811906131,0.85099857,2470.2,2470.0,1.0827601]
[1728811906449,0.85099857,2470.2,2470.1,2.30933101]
[1728811906625,0.85099857,2470.3,2470.1,2.30933101]
[1728811906821,0.85099857,2470.3,2470.1,2.30293101]
[1728811907028,0.85099857,2470.3,2470.1,2.58926086]
[1728811912345,1.05406302,2470.2,2470.1,2.58926086]
[1728811912547,1.05406302,2470.2,2470.1,1.11202985]
[1728811912548,0.06248511,2470.2,2470.1,1.11202985]
[1728811912848,0.85099857,2470.3,2470.1,1.11202985]
[1728811913052,0.06248511,2470.2,2470.1,0.8257]
[1728811913207,0.85099857,2470.3,2470.1,0.8257]
[1728811913410,0.06248511,2470.2,2470.1,0.8257]
[1728811913646,0.85099857,2470.2,2470.1,0.8257]
[1728811913990,1.96764162,2470.2,2470.1,0.8257]
[1728811914150,0.06248511,2470.2,2470.1,0.8257]
[1728811914446,0.85099857,2470.2,2470.1,0.8257]
[1728811914648,1.96764362,2470.2,2470.1,0.8257]
[1728811914849,0.06248511,2470.2,2470.1,0.8257]
[1728811915029,0.85099857,2470.3,2470.1,0.8257]
[1728811915207,0.06248511,2470.2,2470.1,0.8257]
[1728811915409,0.85099857,2470.2,2470.1,0.8257]
[1728811915609,1.9677279,2470.2,2470.1,0.8257]
[1728811917157,1.9677279,2470.2,2470.1,0.95247226]
[1728811918264,1.9677279,2470.2,2470.1,0.95247357]
[1728811918423,1.96794029,2470.2,2470.1,0.95247357]
[1728811918625,1.96794029,2470.2,2470.1,0.8257]
[1728811918848,1.96794029,2470.2,2470.1,0.95247312]
[1728811919047,1.96794029,2470.2,2470.1,0.13317312]
[1728811919247,1.96794029,2470.2,2470.1,0.0064]
[1728811919436,1.96794029,2470.2,2470.1,0.13317216]
[1728811919759,6.42174411,2470.2,2470.1,0.13317216]
[1728811920059,6.42174411,2470.2,2470.1,0.0064]
[1728811921769,6.42177824,2470.2,2470.1,0.0064]
[1728811926463,6.42172848,2470.2,2470.1,0.0064]
[1728811927947,2.37347848,2470.2,2470.1,0.0064]
[1728811928261,1.96792466,2470.2,2470.1,0.0064]
[1728811929570,6.01617466,2470.2,2470.1,0.0064]
[1728811933382,6.01617466,2470.2,2470.1,0.13317502]
[1728811933747,6.01617466,2470.2,2470.1,0.0064]
[1728811933748,5.16517609,2470.2,2470.1,0.0064]
[1728811934039,7.89033672,2470.2,2470.1,0.0064]
[1728811938389,8.02069618,2470.2,2470.1,0.0064]
[1728811939462,10.51812889,2470.2,2470.1,0.0064]
[1728811940792,10.51905908,2470.2,2470.1,0.0064]
[1728811943502,10.51905908,2470.2,2470.1,0.13318422]
[1728811945568,10.51952334,2470.2,2470.1,0.0064]
[1728811945898,8.81749063,2470.2,2470.1,0.1331838]
[1728811946988,10.52002814,2470.2,2470.1,0.1331838]
[1728811947315,8.81749063,2470.2,2470.1,0.1331838]
[1728811949468,8.81749063,2470.2,2470.1,0.13318365]
[1728811950302,8.81751975,2470.2,2470.1,0.13318365]
[1728811950695,10.94574259,2470.2,2470.1,0.13318365]
[1728811950882,10.94574259,2470.2,2470.1,0.0064]
[1728811951607,10.94557763,2470.2,2470.1,0.0064]
[1728811954730,12.42920864,2470.2,2470.1,0.0064]
[1728811955022,10.94557763,2470.2,2470.1,0.0064]
[1728811955339,10.94552217,2470.2,2470.1,0.0064]
[1728811956304,12.42915318,2470.2,2470.1,0.0064]
[1728811956825,10.30107767,2470.2,2470.1,0.0064]
[1728811960018,10.30071091,2470.2,2470.1,0.0064]
[1728811969633,10.30038599,2470.2,2470.1,0.0064]
[1728811974543,10.30040424,2470.2,2470.1,0.0064]
[1728811979372,10.30050931,2470.2,2470.1,0.0064]
[1728811981023,8.8168783,2470.2,2470.1,0.0064]
[1728811981258,8.05644654,2470.2,2470.1,0.0064]
[1728811982667,8.05660639,2470.2,2470.1,0.0064]
[1728811983526,6.57297538,2470.2,2470.1,0.0064]
[1728811987583,6.57314482,2470.2,2470.1,0.0064]
[1728811997260,6.57369576,2470.2,2470.1,0.0064]
[1728811997463,8.12232193,2470.2,2470.1,0.0064]
[1728811998892,8.88682193,2470.2,2470.1,0.0064]
[1728811999096,13.20164548,2470.2,2470.1,0.0064]
[1728811999397,14.68527649,2470.2,2470.1,0.0064]
[1728812000467,12.13083155,2470.2,2470.1,0.0064]
[1728812002377,12.68083155,2470.2,2470.1,0.0064]
[1728812002586,4.86108,2470.0,2469.9,0.0064]
[1728812002782,11.36304731,2470.0,2469.9,0.0064]
[1728812002997,10.62540411,2470.0,2469.9,0.0064]
[1728812003208,13.18023448,2470.0,2469.9,0.0064]
[1728812003409,12.91321652,2470.0,2469.6,0.0064]
[1728812003574,4.0494,2469.5,2469.4,0.8105]
[1728812003778,6.38290957,2469.5,2469.4,0.8105]